{"text_format":"1","workbook":"xlsx","n_sheets":2,"sheets":["Feuil1","Feuil2"],"not_rendered":{"charts":0,"images":0,"macros":1,"external_links":0,"defined_names":2,"comments":0,"pivot_tables":0},"unopened":[],"bounds":{"document_bytes":16777216,"sheet_cells":100000,"rows_first":2000,"rows_last":500,"rows_between":2000,"halvings":0,"cell_chars":16384,"cell_head_chars":4096},"cells_cut":0,"cells_raw":0,"read":"whole","date_system":"1900"}

{"sheet":"Feuil1","index":0,"n_rows":109,"n_cols":10,"rows_kept":109,"cut":false,"hidden":false,"merged":[]}
["Région","CodeRegionGed","CodeRegionMaximo","Plant","CodePlantGed","CodePlantMaximo","Unit","CodeUnitGed","CodeUnitMaximo","comp"]
["MED","MED","MED - Méditerranée","Med. On-Sites","MOS","LI-FR-MEOS","Air Comprimé Ascometal","ACASC","AC-ASCO",{"$f":"E2&H2","v":"MOSACASC"}]
["MED","MED","MED - Méditerranée","Med. On-Sites","MOS","LI-FR-MEOS","Figenal","FIG","FIGE-COGEN-P3",{"$f":"E3&H3","v":"MOSFIG"}]
["MED","MED","MED - Méditerranée","Med. On-Sites","MOS","LI-FR-MEOS","Lavera Energies","LAVEN","LAVE-COGEN-P3","MOSLAVEN"]
["MED","MED","MED - Méditerranée","Med. On-Sites","MOS","LI-FR-MEOS","Lavéra H2","LVH2","LAVERA-H2","MOSLVH2"]
["MED","MED","MED - Méditerranée","Med. On-Sites","MOS","LI-FR-MEOS","Lavéra N2","LVN2","LAVERA-N2","MOSLVN2"]
["MED","MED","MED - Méditerranée","Med. On-Sites","MOS","LI-FR-MEOS","Lavéra Sigma","LVSIG","LAVERA-SIGMA","MOSLVSIG"]
["MED","MED","MED - Méditerranée","Med. On-Sites","MOS","LI-FR-MEOS","LAVERA SMR","SMR","LAVERA-SMR","MOSSMR"]
["MED","MED","MED - Méditerranée","Med. On-Sites","MOS","LI-FR-MEOS","Lavera Utilités","LAVUT","LAVU-COGEN-P3","MOSLAVUT"]
["MED","MED","MED - Méditerranée","Med. On-Sites","MOS","LI-FR-MEOS","Rousset","ROUSS","LE-ROUSSET","MOSROUSS"]
["MED","MED","MED - Méditerranée","Med. On-Sites","MOS","LI-FR-MEOS","Pierrelatte","PIERR","PIERRELATTE","MOSPIERR"]
["MED","MED","MED - Méditerranée","Med. On-Sites","MOS","LI-FR-MEOS","Saint-Auban","STAUB","ST-AUBAN","MOSSTAUB"]
["MED","MED","MED - Méditerranée","AUDIENCE","AUDIE","LI-FR-FOSM","Fos Aladin","ALADI","FOS-ALADIN","AUDIEALADI"]
["MED","MED","MED - Méditerranée","AUDIENCE","AUDIE","LI-FR-FOSM","Audience","AUDIE","AUDIENCE","AUDIEAUDIE"]
["MED","MED","MED - Méditerranée","AUDIENCE","AUDIE","LI-FR-FOSM","Oxytonne5","OXYT5","FOS-OXYTONNE5","AUDIEOXYT5"]
["MED","MED","MED - Méditerranée","AUDIENCE","AUDIE","LI-FR-FOSM","Air Comprimé Sollac","ACSOL","AC-SOLLAC","AUDIEACSOL"]
["MED","MED","MED - Méditerranée","TONKIN","TONK","LI-FR-FOSM","Tonkin ASU","TKASU","TONKIN-ASU","TONKTKASU"]
["MED","MED","MED - Méditerranée","TONKIN","TONK","LI-FR-FOSM","Liquéfacteur TONKIN","TKLIQ","LIQUE TONKIN","TONKTKLIQ"]
["MED","MED","MED - Méditerranée","TONKIN","TONK","LI-FR-FOSM","Tonkin H2: PSA & Stockage","TKH2","TONKIN-H2","TONKTKH2"]
["EST","EST","EST - Est","Richemont","RIC","LI-FR-RICH","Est cana: cabines et postes","CABE","CAB-EST","RICCABE"]
["EST","EST","EST - Est","Richemont","RIC","LI-FR-RICH","Est cana: canalisations","CANE","CAN-EST","RICCANE"]
["EST","EST","EST - Est","Richemont","RIC","LI-FR-RICH","Carling","CARL","CARLING","RICCARL"]
["EST","EST","EST - Est","Richemont","RIC","LI-FR-RICH","Esch sur Alzette","ESCH","ESCH","RICESCH"]
["EST","EST","EST - Est","Richemont","RIC","LI-FR-RICH","Lorraine On site","ONSIT","ON-SITE-EST","RICONSIT"]
["EST","EST","EST - Est","Richemont","RIC","LI-FR-RICH","Installations ELEC RICH-ASU","ELEC","INSTALLATIONS ELEC","RICELEC"]
["EST","EST","EST - Est","Richemont","RIC","LI-FR-RICH","BFR3","BFR3","BFR3","RICBFR3"]
["EST","EST","EST - Est","Richemont","RIC","LI-FR-RICH","Compresseurs RICH-ASU","COMP","COMPRESSEURS","RICCOMP"]
["EST","EST","EST - Est","Richemont","RIC","LI-FR-RICH","Richemont - Stockage et vapos","SVAP","STOCK-VAPO","RICSVAP"]
["EST","EST","EST - Est","Richemont","RIC","LI-FR-RICH","BFR1","BFR1","BFR1","RICBFR1"]
["EST","EST","EST - Est","Richemont","RIC","LI-FR-RICH","BFR2","BFR2","BFR2","RICBFR2"]
["EST","EST","EST - Est","Richemont","RIC","LI-FR-RICH","Richemont ASU","RASU","RICHEMONT-ASU","RICRASU"]
["EST","EST","EST - Est","Tavaux","TAV","LI-FR-TAVA","Production Air Sec zone IXAN","IXAN","TAVA_AIR_SEC_IXAN","TAVIXAN"]
["EST","EST","EST - Est","Tavaux","TAV","LI-FR-TAVA","Production Air Sec zone PVDF","PVDF","TAVA_AIR_SEC_PVDF","TAVPVDF"]
["EST","EST","EST - Est","Tavaux","TAV","LI-FR-TAVA","Hydrogène","HYDR","TAVA-HYDROGENE","TAVHYDR"]
["EST","EST","EST - Est","Tavaux","TAV","LI-FR-TAVA","Production Air Sec zone Usine","USIN","TAVA_SIR_SEC_SITE","TAVUSIN"]
["EST","EST","EST - Est","Tavaux","TAV","LI-FR-TAVA","Production Air Sec zone P79","P79","TAVA-AIR_SEC_P79","TAVP79"]
["EST","EST","EST - Est","Richemont","RIC","LI-FR-RICH","Richemont ASU","RASU","RICHEMONT-ASU","RICRASU"]
["EST","EST","EST - Est","Tavaux","TAV","LI-FR-TAVA","Tavaux","ASU1","TAVA-ASU-P1","TAVASU1"]
["NMD","NMD","NMD - Normandie","Port-Jérôme","PRJ","LI-FR-PORJ","Cryocap","CRYOC","PORJ-CO2","PRJCRYOC"]
["NMD","NMD","NMD - Normandie","Port-Jérôme","PRJ","LI-FR-PORJ","Steam Methane Reformer","SMR","PORJ-SMR","PRJSMR"]
["NMD","NMD","NMD - Normandie","Port-Jérôme","PRJ","LI-FR-PORJ","Centre de Conditionnement","CCH2","PORJ-CCH2","PRJCCH2"]
["NMD","NMD","NMD - Normandie","Port-Jérôme","PRJ","LI-FR-PORJ","Back-up H2","BKUH2","PORJ-BACK-UP-H2","PRJBKUH2"]
["NMD","NMD","NMD - Normandie","Moissy","MOI","LI-FR-MOIS","Moissy","ASU","MOIS-ASU-P1","MOIASU"]
["NMD","NMD","NMD - Normandie","Montoir","MNT","LI-FR-MONT","Montoir","ASU","MONT-ASU-P1","MNTASU"]
["NMD","NMD","NMD - Normandie","Sandouville","SAN","LI-FR-SAND","Sandouville ASU 2","ASU2","SAND-ASU2","SANASU2"]
["NMD","NMD","NMD - Normandie","Sandouville","SAN","LI-FR-SAND","Rouen HPN","HPN","SAND-HPN-ROUEN","SANHPN"]
["NMD","NMD","NMD - Normandie","Sandouville","SAN","LI-FR-SAND","Sandouville cana: cabines","CABIN","SAND-CANA-CABINES","SANCABIN"]
["NMD","NMD","NMD - Normandie","Sandouville","SAN","LI-FR-SAND","Sandouville 800 bar","800BA","SAND-800 BAR","SAN800BA"]
["NMD","NMD","NMD - Normandie","Sandouville","SAN","LI-FR-SAND","Sandouville cana: tuyaux","PIPE","SAND-CANA-TUYAUX","SANPIPE"]
["NMD","NMD","NMD - Normandie","Sandouville","SAN","LI-FR-SAND","Sandouville ASU 1","ASU1","SAND-ASU1","SANASU1"]
["NOF","NOF","NOF - Nord France","NNE NFSB Cana Waziers","WAZ","LI-FR-CWAZ","Cabines H2 de Nord France","CABH2","NF-CABH2","WAZCABH2"]
["NOF","NOF","NOF - Nord France","NNE NFSB Cana Waziers","WAZ","LI-FR-CWAZ","Cabines O2 & N2 de Nord France","CABON2","NF-CABO2N2","WAZCABON2"]
["NOF","NOF","NOF - Nord France","Dunkerque","DUN","LI-FR-DUNK","Dunkerque on site","ONSIT","DK-ON-SITE","DUNONSIT"]
["NOF","NOF","NOF - Nord France","Dunkerque","DUN","LI-FR-DUNK","Dunkerque ASU","ASU","DK-ASU","DUNASU"]
["NOF","NOF","NOF - Nord France","Dunkerque","DUN","LI-FR-DUNK","Dunkerque ALADIN","ALADI","DK-ALADIN","DUNALADI"]
["NOF","NOF","NOF - Nord France","Dunkerque","DUN","LI-FR-DUNK","Dunkerque Liquéfacteur","LIQUE","DK-LIQUE","DUNLIQUE"]
["NOF","NOF","NOF - Nord France","Dunkerque","DUN","LI-FR-DUNK","Dunkerque ASU 1000T","1000T","DK-1000T","DUN1000T"]
["NOF","NOF","NOF - Nord France","Dunkerque","DUN","LI-FR-DUNK","Dunkerque ASU 2000T","2000T","DK-2000T","DUN2000T"]
["NOF","NOF","NOF - Nord France","NNE NFSB Cana Waziers","WAZ","LI-FR-CWAZ","Poste de Sectionnement H2 de Nord France","PSCH2","NF-PSH2","WAZPSCH2"]
["NOF","NOF","NOF - Nord France","NNE NFSB Cana Waziers","WAZ","LI-FR-CWAZ","Poste de Sectionnement O2 & N2 de Nord France","PSON2","NF-PSO2N2","WAZPSON2"]
["NOF","NOF","NOF - Nord France","Waziers","WAZ","LI-FR-WAZI","Waziers","HYCO","WAZI-HYCO-P2","WAZHYCO"]
["PTL","PTL","PTL - Pardies-Tarnos-Lacq","Lacq","LAC","LI-FR-LACQ","Sigma Lacq","ASU","LACQ-ASU-P1","LACASU"]
["PTL","PTL","PTL - Pardies-Tarnos-Lacq","Tarnos","TAR","LI-FR-TARN","Tarnos","ASU","TARN-ASU-P1","TARASU"]
["PIP","PIP","","Canalisation Sud","CAS","LI-FR-CASU","Cabines, Poste de sectionnement SUD Site de Fos","FOSIN","CANA-FOS-INSTAL","CASFOSIN"]
["PIP","PIP","","Canalisation Sud","CAS","LI-FR-CASU","Réseaux de canalisation SUD Site de Feyzin","FEYRS","CANA-FEYZ-RESEAU","CASFEYRS"]
["PIP","PIP","","Canalisation Sud","CAS","LI-FR-CASU","Réseaux de canalisation SUD Site de Fos","FOSRS","CANA-FOS-RESEAU","CASFOSRS"]
["PIP","PIP","","Canalisation Sud","CAS","LI-FR-CASU","Cabines, Poste de sectionnement SUD Site de Feyzin","FEYIN","CANA-FEYZ-INSTAL",{"$f":"E67&H67","v":"CASFEYIN"}]
["PIP","PIP","","Canalisation Sud","CAS","LI-FR-CASU","Cabines, Poste de sectionnement SUD Site de Jarrie","JARIN","CANA-JARR-INSTAL","CASJARIN"]
["PIP","PIP","","Canalisation Sud","CAS","LI-FR-CASU","Réseaux de canalisation  SUD Site de Jarrie","JARRS","CANA-JARR-RESEAU","CASJARRS"]
["PIP","PIP","","Canalisation Ouest","CAO","LI-FR-CAOU","Réseaux de canalisation OUEST site de Montoir","MNTRS","CANA-MONT-RESEAU","CAOMNTRS"]
["PIP","PIP","","Canalisation Sud","CAS","LI-FR-CASU","Cabines, Poste de sectionnement SUD Site de Pierrelatte","PIEIN","CANA-PIER-INSTAL","CASPIEIN"]
["PIP","PIP","","Canalisation Sud","CAS","LI-FR-CASU","Réseaux de canalisation SUD Site de Pierrelatte","PIERS","CANA-PIER-RESEAU","CASPIERS"]
["PIP","PIP","","Canalisation Ouest","CAO","LI-FR-CAOU","Cabines, Poste de sectionnement et ON-Site OUEST site de Port-Jérôme","PRJIN","CANA-PORJ-INSTAL","CAOPRJIN"]
["PIP","PIP","","Canalisation Ouest","CAO","LI-FR-CAOU","Cabines, Poste de sectionnement OUEST site de Montoir","MOIIN","CANA-MONT-INSTAL","CAOMOIIN"]
["PIP","PIP","","Canalisation Ouest","CAO","LI-FR-CAOU","Réseaux de canalisation OUEST site de Moissy","MOIRS","CANA-MOIS-RESEAU","CAOMOIRS"]
["PIP","PIP","","Canalisation Ouest","CAO","LI-FR-CAOU","Réseaux de canalisation OUEST site de Port-Jérôme","PRJRS","CANA-PORJ-RESEAU","CAOPRJRS"]
["PIP","PIP","","Canalisation Est","CAE","LI-FR-CAES","Cabines, Poste de sectionnement EST","RICIN","CANA-RICH-INSTAL","CAERICIN"]
["PIP","PIP","","Canalisation Est","CAE","LI-FR-CAES","Réseaux de canalisation EST","RICRS","CANA-RICH-RESEAU","CAERICRS"]
["PIP","PIP","","Canalisation Est","CAE","LI-FR-CAES","Protection cathodique EST","RICPC","CANA-RICH-PC","CAERICPC"]
["PIP","PIP","","Canalisation Ouest","CAO","LI-FR-CAOU","Cabines, Poste de sectionnement et ON-Site OUEST site de Sandouville","SANIN","CANA-SAND-INSTAL","CAOSANIN"]
["PIP","PIP","","Canalisation Ouest","CAO","LI-FR-CAOU","Réseaux de canalisation OUEST site de Sandouville","SANRS","CANA-SAND-RESEAU","CAOSANRS"]
["PIP","PIP","","Canalisation Nord","CAN","LI-FR-CANO","Cabines, Poste de sectionnement et ON-Site  NORD","WAZIN","CANA-WAZI-INSTAL","CANWAZIN"]
["RHA","RHA","RHA - Rhône-Alpes","Belle Etoile","BEL","LI-FR-BELL","Belle Etoile HYC","HYCO","BELL-HYCO-P2","BELHYCO"]
["RHA","RHA","RHA - Rhône-Alpes","Feyzin","FEY","LI-FR-FEYZ","Feyzin ASU","ASU","FEYZ-ASU1","FEYASU"]
["RHA","RHA","RHA - Rhône-Alpes","Feyzin","FEY","LI-FR-FEYZ","Feyzin cana","PIPE","FEYZ-CANAS","FEYPIPE"]
["RHA","RHA","RHA - Rhône-Alpes","Jarrie","JAR","LI-FR-JARR","Jarrie ASU","ASU","JARR-ASU1","JARASU"]
["RHA","RHA","RHA - Rhône-Alpes","Pont de Claix","PDC","LI-FR-PDCX","Pont de Claix utilités et communs","UTILI","PTCL UTIL&COMM","PDCUTILI"]
["RHA","RHA","RHA - Rhône-Alpes","Pont de Claix","PDC","LI-FR-PDCX","Pont de Claix boîte froide","BFROI","PTCL BOITE FROIDE","PDCBFROI"]
["RHA","RHA","RHA - Rhône-Alpes","Pont de Claix","PDC","LI-FR-PDCX","Pont de Claix membrane et sécheurs","MMBSC","PTCL MEMB-SECH","PDCMMBSC"]
["RHA","RHA","RHA - Rhône-Alpes","Pont de Claix","PDC","LI-FR-PDCX","Pont de Claix PSA","PSA","PTCL PSA","PDCPSA"]
["RHA","RHA","RHA - Rhône-Alpes","Pont de Claix","PDC","LI-FR-PDCX","Pont de Claix POX","POX","PTCL POX","PDCPOX"]
["RHA","RHA","RHA - Rhône-Alpes","Roussillon","RSLN","LI-FR-RSLN","Roussillon","HYCO","RSLN-HYCO-P2","RSLNHYCO"]
["RHA","RHA","RHA - Rhône-Alpes","Pont de Claix","PDC","LI-FR-PDCX","Pont de Claix SMR","SMR","PTCL SMR","PDCSMR"]
["GUY","GUY","GUY - Guyane","Kourou","KOU","LI-FR-KOUR","ALSG process Cryogénique","CRYO","ALSG-ELA-CRYO","KOUCRYO"]
["GUY","GUY","GUY - Guyane","Kourou","KOU","LI-FR-KOUR","ALSG Air","PRAIR","ALSG-PROD-AIR","KOUPRAIR"]
["GUY","GUY","GUY - Guyane","Kourou","KOU","LI-FR-KOUR","ALSG GN2","PRGN2","ALSG-PROD-GN2","KOUPRGN2"]
["GUY","GUY","GUY - Guyane","Kourou","KOU","LI-FR-KOUR","ALSG hélium","PRHEL","ALSG-PROD-HELIUM","KOUPRHEL"]
["GUY","GUY","GUY - Guyane","Kourou","KOU","LI-FR-KOUR","ALSG LH2","PRLH2","ALSG-PROD-LH2","KOUPRLH2"]
["GUY","GUY","GUY - Guyane","Kourou","KOU","LI-FR-KOUR","ALSG LOX","PRLOX","ALSG-PROD-LOX","KOUPRLOX"]
["GUY","GUY","GUY - Guyane","Kourou","KOU","LI-FR-KOUR","ALSG hélium","PRHEL","ALSG-PROD-HELIUM","KOUPRHEL"]
["GUY","GUY","GUY - Guyane","Kourou","KOU","LI-FR-KOUR","ALSG cana","PIPE","ALSG-PROD-CANA","KOUPIPE"]
["GUY","GUY","GUY - Guyane","Kourou","KOU","LI-FR-KOUR","ALSG dépôt DDC","PRDDC","ALSG-PROD-DDC","KOUPRDDC"]
["GUY","GUY","GUY - Guyane","Kourou","KOU","LI-FR-KOUR","ALSG Conditionnement","PRDSC","ALSG-PROD-SC","KOUPRDSC"]
["GUY","GUY","GUY - Guyane","Kourou","KOU","LI-FR-KOUR","Unité de séparation de l'air SILPA70 et réservoirs sous vide","SILPA","ALSG-SILPA","KOUSILPA"]
["MED","MED","MED - Méditerranée","AUDIENCE","AUDIE","LI-FR-FOSM","Med cana: cabines et postes Fos","CBFOS","CAB-MED-FOS","AUDIECBFOS"]
["MED","MED","MED - Méditerranée","AUDIENCE","AUDIE","LI-FR-FOSM","Med cana: canalisations Fos","RSFOS","CAN-MED-FOS","AUDIERSFOS"]
["MED","MED","MED - Méditerranée","TONKIN","TONK","LI-FR-FOSM","Med cana: cabines et postes Pierrelatte","CBPIE","CAB-MED-PIE","TONKCBPIE"]
["MED","MED","MED - Méditerranée","TONKIN","TONK","LI-FR-FOSM","Med cana: canalisations Pierrelatte","RSPIE","CAN-MED-PIE","TONKRSPIE"]
["MED","MED","MED - Méditerranée","Med. On-Sites","MOS","LI-FR-MEOS","Air Comprimé Ascometal","ACASC","AC-ASCO","MOSACASC"]

{"sheet":"Feuil2","index":1,"n_rows":6,"n_cols":10,"rows_kept":6,"cut":false,"hidden":false,"merged":[]}
["Région","CodeRegionGed","CodeRegionMaximo","Plant","CodePlantGed","CodePlantMaximo","Unit","CodeUnitGed","CodeUnitMaximo","comp"]
[{"$f":"LOOKUP($J2,Feuil1!$J$2:$J$109,Feuil1!A$2:A$109)","v":"MED"},{"$f":"LOOKUP($J2,Feuil1!$J$2:$J$109,Feuil1!B$2:B$109)","v":"MED"},{"$f":"LOOKUP($J2,Feuil1!$J$2:$J$109,Feuil1!C$2:C$109)","v":"MED - Méditerranée"},{"$f":"LOOKUP($J2,Feuil1!$J$2:$J$109,Feuil1!D$2:D$109)","v":"AUDIENCE"},"MOS",{"$f":"LOOKUP($J2,Feuil1!$J$2:$J$109,Feuil1!F$2:F$109)","v":"LI-FR-FOSM"},{"$f":"LOOKUP($J2,Feuil1!$J$2:$J$109,Feuil1!G$2:G$109)","v":"Med cana: canalisations Fos"},"LAVEN",{"$f":"LOOKUP($J2,Feuil1!$J$2:$J$109,Feuil1!I$2:I$109)","v":"CAN-MED-FOS"},{"$f":"E2&H2","v":"MOSLAVEN"}]
[{"$f":"LOOKUP($J3,Feuil1!$J$2:$J$109,Feuil1!A$2:A$109)","v":"MED"},{"$f":"LOOKUP($J3,Feuil1!$J$2:$J$109,Feuil1!B$2:B$109)","v":"MED"},{"$f":"LOOKUP($J3,Feuil1!$J$2:$J$109,Feuil1!C$2:C$109)","v":"MED - Méditerranée"},{"$f":"LOOKUP($J3,Feuil1!$J$2:$J$109,Feuil1!D$2:D$109)","v":"AUDIENCE"},"MOS",{"$f":"LOOKUP($J3,Feuil1!$J$2:$J$109,Feuil1!F$2:F$109)","v":"LI-FR-FOSM"},{"$f":"LOOKUP($J3,Feuil1!$J$2:$J$109,Feuil1!G$2:G$109)","v":"Med cana: canalisations Fos"},"LAVUT",{"$f":"LOOKUP($J3,Feuil1!$J$2:$J$109,Feuil1!I$2:I$109)","v":"CAN-MED-FOS"},{"$f":"E3&H3","v":"MOSLAVUT"}]
[{"$f":"LOOKUP($J4,Feuil1!$J$2:$J$109,Feuil1!A$2:A$109)","v":"MED"},{"$f":"LOOKUP($J4,Feuil1!$J$2:$J$109,Feuil1!B$2:B$109)","v":"MED"},{"$f":"LOOKUP($J4,Feuil1!$J$2:$J$109,Feuil1!C$2:C$109)","v":"MED - Méditerranée"},{"$f":"LOOKUP($J4,Feuil1!$J$2:$J$109,Feuil1!D$2:D$109)","v":"AUDIENCE"},"AUDIE",{"$f":"LOOKUP($J4,Feuil1!$J$2:$J$109,Feuil1!F$2:F$109)","v":"LI-FR-FOSM"},{"$f":"LOOKUP($J4,Feuil1!$J$2:$J$109,Feuil1!G$2:G$109)","v":"Audience"},"AUDIE",{"$f":"LOOKUP($J4,Feuil1!$J$2:$J$109,Feuil1!I$2:I$109)","v":"AUDIENCE"},"AUDIEAUDIE"]
[{"$f":"LOOKUP($J5,Feuil1!$J$2:$J$109,Feuil1!A$2:A$109)","v":"MED"},{"$f":"LOOKUP($J5,Feuil1!$J$2:$J$109,Feuil1!B$2:B$109)","v":"MED"},{"$f":"LOOKUP($J5,Feuil1!$J$2:$J$109,Feuil1!C$2:C$109)","v":"MED - Méditerranée"},{"$f":"LOOKUP($J5,Feuil1!$J$2:$J$109,Feuil1!D$2:D$109)","v":"Med. On-Sites"},"TONK",{"$f":"LOOKUP($J5,Feuil1!$J$2:$J$109,Feuil1!F$2:F$109)","v":"LI-FR-MEOS"},{"$f":"LOOKUP($J5,Feuil1!$J$2:$J$109,Feuil1!G$2:G$109)","v":"Air Comprimé Ascometal"},"TKH2",{"$f":"LOOKUP($J5,Feuil1!$J$2:$J$109,Feuil1!I$2:I$109)","v":"AC-ASCO"},"TONKTKH2"]
[{"$f":"LOOKUP($J6,Feuil1!$J$2:$J$109,Feuil1!A$2:A$109)","v":"MED"},{"$f":"LOOKUP($J6,Feuil1!$J$2:$J$109,Feuil1!B$2:B$109)","v":"MED"},{"$f":"LOOKUP($J6,Feuil1!$J$2:$J$109,Feuil1!C$2:C$109)","v":"MED - Méditerranée"},{"$f":"LOOKUP($J6,Feuil1!$J$2:$J$109,Feuil1!D$2:D$109)","v":"AUDIENCE"},"RIC",{"$f":"LOOKUP($J6,Feuil1!$J$2:$J$109,Feuil1!F$2:F$109)","v":"LI-FR-FOSM"},{"$f":"LOOKUP($J6,Feuil1!$J$2:$J$109,Feuil1!G$2:G$109)","v":"Med cana: canalisations Fos"},"ELEC",{"$f":"LOOKUP($J6,Feuil1!$J$2:$J$109,Feuil1!I$2:I$109)","v":"CAN-MED-FOS"},"RICELEC"]